[Event "Titled Tuesday Blitz June 13 Late 2023"]
[White "Rodrigue-Lemieux, Shawn"]
[Black "ElDivis"]
[WhiteFideId "2620049"]
[WhiteElo "2405"]
[BlackElo "2551"]
[Result "1-0"]
[Round "2"]
[TimeControl "180+2"]
[Date "2023.06.13"]
[WhiteClock "0:00:21"]
[BlackClock "0:00:00"]
[Board "48"]

1. a3 {[%clk 0:03:00]}  g6 {[%clk 0:02:56]} 2. h4 {[%clk 0:03:00]}  Nf6 {[%clk 0:02:55]} 3. d3 {[%clk 0:02:59]}  d5 {[%clk 0:02:54]} 4. Nc3 {[%clk 0:02:59]}  Bg7 {[%clk 0:02:53]} 5. Bg5 {[%clk 0:02:58]}  h6 {[%clk 0:02:49]} 6. Bxf6 {[%clk 0:02:57]}  Bxf6 {[%clk 0:02:49]} 7. d4 {[%clk 0:02:57]}  O-O {[%clk 0:02:45]} 8. Qd2 {[%clk 0:02:57]}  h5 {[%clk 0:02:41]} 9. O-O-O {[%clk 0:02:55]}  Nc6 {[%clk 0:02:38]} 10. Nf3 {[%clk 0:02:52]}  Bg4 {[%clk 0:02:36]} 11. e3 {[%clk 0:02:49]}  a6 {[%clk 0:02:33]} 12. Be2 {[%clk 0:02:47]}  b5 {[%clk 0:02:30]} 13. Ng5 {[%clk 0:02:47]}  Bxe2 {[%clk 0:02:30]} 14. Nxe2 {[%clk 0:02:43]}  b4 {[%clk 0:01:59]} 15. a4 {[%clk 0:02:42]}  b3 {[%clk 0:01:49]} 16. cxb3 {[%clk 0:02:30]}  Rb8 {[%clk 0:01:48]} 17. Kb1 {[%clk 0:02:27]}  Rxb3 {[%clk 0:01:40]} 18. Rc1 {[%clk 0:02:23]}  Nb4 {[%clk 0:01:11]} 19. Nc3 {[%clk 0:02:03]}  Qb8 {[%clk 0:00:56]} 20. Qd1 {[%clk 0:01:46]}  Nd3 {[%clk 0:00:36]} 21. Kc2 {[%clk 0:01:09]}  Nxb2 {[%clk 0:00:31]} 22. Qf3 {[%clk 0:00:59]}  Nc4 {[%clk 0:00:28]} 23. Qxd5 {[%clk 0:00:53]}  Rb2+ {[%clk 0:00:29]} 24. Kd3 {[%clk 0:00:44]}  Qb3 {[%clk 0:00:23]} 25. Ne4 {[%clk 0:00:22]}  Rb8 {[%clk 0:00:13]} 26. Qxc4 {[%clk 0:00:20]}  Qxc4+ {[%clk 0:00:03]} 27. Kxc4 {[%clk 0:00:21]}  c5 {[%clk 0:00:02]} 28. Nxf6+ {[%clk 0:00:21]}  exf6 {[%clk 0:00:00]} 29. dxc5 {[%clk 0:00:21]} 1-0


[Site "https://www.chess.com"]

[Event "Titled Tuesday Blitz June 13 Late 2023"]
[White "Kim, Sergey"]
[Black "Kushko, Dmitriy"]
[WhiteFideId "13700570"]
[BlackFideId "14162261"]
[WhiteElo "2550"]
[BlackElo "2230"]
[Result "1/2-1/2"]
[Round "2"]
[TimeControl "180+2"]
[Date "2023.06.13"]
[WhiteClock "0:00:19"]
[BlackClock "0:00:08"]
[Board "49"]

1. d4 {[%clk 0:03:00]}  g6 {[%clk 0:03:00]} 2. c4 {[%clk 0:03:01]}  Bg7 {[%clk 0:03:01]} 3. Nc3 {[%clk 0:03:01]}  d6 {[%clk 0:03:01]} 4. e4 {[%clk 0:03:00]}  e5 {[%clk 0:03:01]} 5. d5 {[%clk 0:02:59]}  a5 {[%clk 0:03:01]} 6. Nge2 {[%clk 0:02:58]}  Na6 {[%clk 0:03:01]} 7. Ng3 {[%clk 0:02:58]}  Nc5 {[%clk 0:02:58]} 8. Be2 {[%clk 0:02:57]}  h5 {[%clk 0:02:56]} 9. O-O {[%clk 0:02:55]}  Bd7 {[%clk 0:02:45]} 10. Be3 {[%clk 0:02:52]}  b6 {[%clk 0:02:42]} 11. Qd2 {[%clk 0:02:48]}  Bh6 {[%clk 0:02:40]} 12. Rae1 {[%clk 0:02:42]}  Qe7 {[%clk 0:02:29]} 13. Bd1 {[%clk 0:02:39]}  Bxe3 {[%clk 0:02:24]} 14. Qxe3 {[%clk 0:02:38]}  Nh6 {[%clk 0:02:16]} 15. Bc2 {[%clk 0:02:26]}  h4 {[%clk 0:02:02]} 16. Nh1 {[%clk 0:02:25]}  g5 {[%clk 0:01:55]} 17. f3 {[%clk 0:02:20]}  O-O-O {[%clk 0:01:26]} 18. Nf2 {[%clk 0:02:14]}  Kb7 {[%clk 0:01:25]} 19. b3 {[%clk 0:02:04]}  f5 {[%clk 0:01:22]} 20. exf5 {[%clk 0:02:03]}  Nxf5 {[%clk 0:01:19]} 21. Bxf5 {[%clk 0:02:02]}  Bxf5 {[%clk 0:01:20]} 22. Nce4 {[%clk 0:01:52]}  Rhg8 {[%clk 0:01:18]} 23. Nxc5+ {[%clk 0:01:48]}  bxc5 {[%clk 0:01:16]} 24. Qd2 {[%clk 0:01:42]}  Ra8 {[%clk 0:01:11]} 25. a3 {[%clk 0:01:40]}  Rgb8 {[%clk 0:00:59]} 26. b4 {[%clk 0:01:30]}  axb4 {[%clk 0:00:51]} 27. axb4 {[%clk 0:01:30]}  cxb4 {[%clk 0:00:51]} 28. Qxb4+ {[%clk 0:01:29]}  Kc8 {[%clk 0:00:51]} 29. Qd2 {[%clk 0:01:25]}  Rb3 {[%clk 0:00:46]} 30. Ne4 {[%clk 0:01:23]}  Bxe4 {[%clk 0:00:40]} 31. fxe4 {[%clk 0:01:22]}  g4 {[%clk 0:00:24]} 32. Qd1 {[%clk 0:01:20]}  Raa3 {[%clk 0:00:16]} 33. Qxg4+ {[%clk 0:01:19]}  Kb7 {[%clk 0:00:17]} 34. Rb1 {[%clk 0:01:13]}  Qe8 {[%clk 0:00:15]} 35. Rxb3+ {[%clk 0:01:09]}  Rxb3 {[%clk 0:00:15]} 36. Ra1 {[%clk 0:01:01]}  h3 {[%clk 0:00:14]} 37. Qd1 {[%clk 0:00:54]}  Rb6 {[%clk 0:00:12]} 38. g3 {[%clk 0:00:38]}  Qg6 {[%clk 0:00:08]} 39. Qa4 {[%clk 0:00:35]}  Kc8 {[%clk 0:00:08]} 40. Rf1 {[%clk 0:00:24]}  Qg7 {[%clk 0:00:08]} 41. Qa8+ {[%clk 0:00:20]}  Rb8 {[%clk 0:00:09]} 42. Qa6+ {[%clk 0:00:20]}  Kd8 {[%clk 0:00:08]} 43. Qa7 {[%clk 0:00:20]}  Kc8 {[%clk 0:00:08]} 44. Qa6+ {[%clk 0:00:19]}  Kd8 {[%clk 0:00:08]} 45. Qa7 {[%clk 0:00:19]}  Kc8 {[%clk 0:00:08]} 46. Qa6+ {[%clk 0:00:19]} 1/2-1/2


[Site "https://www.chess.com"]

[Event "Titled Tuesday Blitz June 13 Late 2023"]
[White "Diaz Rosas, Julio Cesar"]
[Black "Kosakowski, Jakub"]
[WhiteFideId "5105099"]
[BlackFideId "1185080"]
[WhiteElo "2284"]
[BlackElo "2488"]
[Result "0-1"]
[Round "2"]
[TimeControl "180+2"]
[Date "2023.06.13"]
[WhiteClock "0:00:00"]
[BlackClock "0:00:02"]
[Board "51"]

1. e4 {[%clk 0:03:00]}  e5 {[%clk 0:02:56]} 2. Nf3 {[%clk 0:02:57]}  Nc6 {[%clk 0:02:56]} 3. Bb5 {[%clk 0:02:56]}  Nf6 {[%clk 0:02:56]} 4. d3 {[%clk 0:02:51]}  Bc5 {[%clk 0:02:56]} 5. Bxc6 {[%clk 0:02:49]}  dxc6 {[%clk 0:02:56]} 6. Qe2 {[%clk 0:02:46]}  Qe7 {[%clk 0:02:55]} 7. Nbd2 {[%clk 0:02:44]}  Bg4 {[%clk 0:02:54]} 8. h3 {[%clk 0:02:44]}  Bh5 {[%clk 0:02:55]} 9. Nf1 {[%clk 0:02:41]}  Nd7 {[%clk 0:02:47]} 10. Be3 {[%clk 0:02:37]}  Nf8 {[%clk 0:02:41]} 11. O-O-O {[%clk 0:02:32]}  Bxf3 {[%clk 0:02:37]} 12. Qxf3 {[%clk 0:02:31]}  Ne6 {[%clk 0:02:38]} 13. Kb1 {[%clk 0:02:30]}  f6 {[%clk 0:02:34]} 14. h4 {[%clk 0:02:27]}  O-O-O {[%clk 0:02:34]} 15. h5 {[%clk 0:02:26]}  Bd4 {[%clk 0:02:25]} 16. Bc1 {[%clk 0:02:15]}  Kb8 {[%clk 0:02:07]} 17. Ne3 {[%clk 0:02:13]}  Qd7 {[%clk 0:01:56]} 18. Nf5 {[%clk 0:02:00]}  Bb6 {[%clk 0:01:54]} 19. Qg3 {[%clk 0:01:51]}  Qf7 {[%clk 0:01:52]} 20. Ne3 {[%clk 0:01:32]}  Nf4 {[%clk 0:01:46]} 21. Qf3 {[%clk 0:01:29]}  Ne6 {[%clk 0:01:36]} 22. Nf5 {[%clk 0:01:19]}  Rd7 {[%clk 0:01:31]} 23. g3 {[%clk 0:01:09]}  Rhd8 {[%clk 0:01:27]} 24. Qg2 {[%clk 0:01:03]}  g6 {[%clk 0:01:15]} 25. hxg6 {[%clk 0:00:59]}  hxg6 {[%clk 0:01:16]} 26. Ne3 {[%clk 0:00:59]}  Bxe3 {[%clk 0:00:49]} 27. Bxe3 {[%clk 0:00:57]}  c5 {[%clk 0:00:49]} 28. Rdf1 {[%clk 0:00:45]}  g5 {[%clk 0:00:30]} 29. Qh3 {[%clk 0:00:35]}  b5 {[%clk 0:00:30]} 30. f4 {[%clk 0:00:24]}  gxf4 {[%clk 0:00:26]} 31. gxf4 {[%clk 0:00:25]}  exf4 {[%clk 0:00:27]} 32. Bc1 {[%clk 0:00:20]}  c4 {[%clk 0:00:25]} 33. dxc4 {[%clk 0:00:20]}  bxc4 {[%clk 0:00:26]} 34. Qc3 {[%clk 0:00:20]}  Rd4 {[%clk 0:00:13]} 35. Re1 {[%clk 0:00:19]}  Nc5 {[%clk 0:00:12]} 36. Qb4+ {[%clk 0:00:16]}  Nb7 {[%clk 0:00:12]} 37. Rhf1 {[%clk 0:00:16]}  Qe6 {[%clk 0:00:09]} 38. Rxf4 {[%clk 0:00:11]}  Re8 {[%clk 0:00:07]} 39. Qc3 {[%clk 0:00:06]}  Rd6 {[%clk 0:00:06]} 40. Rf2 {[%clk 0:00:04]}  Ka8 {[%clk 0:00:07]} 41. Rfe2 {[%clk 0:00:04]}  Nc5 {[%clk 0:00:07]} 42. Qa3 {[%clk 0:00:04]}  Qe5 {[%clk 0:00:04]} 43. Be3 {[%clk 0:00:03]}  Rc6 {[%clk 0:00:04]} 44. Bg1 {[%clk 0:00:02]}  Rb8 {[%clk 0:00:05]} 45. Ka1 {[%clk 0:00:01]}  Ra6 {[%clk 0:00:03]} 46. Qc3 {[%clk 0:00:01]}  Qxc3 {[%clk 0:00:04]} 47. bxc3 {[%clk 0:00:02]}  Na4 {[%clk 0:00:04]} 48. Bd4 {[%clk 0:00:00]}  c5 {[%clk 0:00:02]} 0-1


[Site "https://www.chess.com"]

[Event "Titled Tuesday Blitz June 13 Late 2023"]
[White "Zavgorodniy, Sergiy"]
[Black "Gadimbayli, Abdulla"]
[WhiteFideId "14110148"]
[BlackFideId "13404938"]
[WhiteElo "2402"]
[BlackElo "2386"]
[Result "0-1"]
[Round "2"]
[TimeControl "180+2"]
[Date "2023.06.13"]
[WhiteClock "0:00:00"]
[BlackClock "0:00:45"]
[Board "53"]

1. d4 {[%clk 0:03:00]}  d5 {[%clk 0:02:59]} 2. c4 {[%clk 0:03:00]}  e5 {[%clk 0:03:00]} 3. e3 {[%clk 0:02:58]}  exd4 {[%clk 0:02:58]} 4. exd4 {[%clk 0:02:59]}  Nf6 {[%clk 0:02:59]} 5. Nf3 {[%clk 0:02:52]}  Bb4+ {[%clk 0:02:49]} 6. Nc3 {[%clk 0:02:51]}  O-O {[%clk 0:02:48]} 7. Be2 {[%clk 0:02:51]}  dxc4 {[%clk 0:02:47]} 8. Bxc4 {[%clk 0:02:45]}  Bg4 {[%clk 0:02:47]} 9. O-O {[%clk 0:02:42]}  Nc6 {[%clk 0:02:47]} 10. Be3 {[%clk 0:02:34]}  Qd6 {[%clk 0:02:47]} 11. h3 {[%clk 0:02:31]}  Bxf3 {[%clk 0:02:42]} 12. Qxf3 {[%clk 0:02:31]}  Nxd4 {[%clk 0:02:38]} 13. Qxb7 {[%clk 0:02:25]}  Rfb8 {[%clk 0:02:31]} 14. Qa6 {[%clk 0:02:20]}  Qxa6 {[%clk 0:02:30]} 15. Bxa6 {[%clk 0:02:21]}  Nc2 {[%clk 0:02:30]} 16. Rac1 {[%clk 0:02:13]}  Nxe3 {[%clk 0:02:14]} 17. fxe3 {[%clk 0:02:14]}  Bc5 {[%clk 0:01:49]} 18. Nd1 {[%clk 0:02:01]}  Bb6 {[%clk 0:01:45]} 19. Bc4 {[%clk 0:01:51]}  Rd8 {[%clk 0:01:44]} 20. Rc2 {[%clk 0:01:49]}  Rd6 {[%clk 0:01:42]} 21. Re2 {[%clk 0:01:38]}  Re8 {[%clk 0:01:36]} 22. Kh2 {[%clk 0:01:22]}  h6 {[%clk 0:01:25]} 23. b3 {[%clk 0:00:59]}  Re7 {[%clk 0:01:24]} 24. g4 {[%clk 0:00:50]}  Kf8 {[%clk 0:01:20]} 25. Kg2 {[%clk 0:00:49]}  Nd7 {[%clk 0:01:14]} 26. Nc3 {[%clk 0:00:44]}  c6 {[%clk 0:00:53]} 27. Rf5 {[%clk 0:00:23]}  Ne5 {[%clk 0:00:51]} 28. e4 {[%clk 0:00:17]}  f6 {[%clk 0:00:50]} 29. Rf1 {[%clk 0:00:15]}  Ng6 {[%clk 0:00:48]} 30. Na4 {[%clk 0:00:11]}  Rd4 {[%clk 0:00:45]} 31. Nxb6 {[%clk 0:00:10]}  axb6 {[%clk 0:00:46]} 32. Kg3 {[%clk 0:00:00]}  b5 {[%clk 0:00:45]} 0-1


[Site "https://www.chess.com"]

[Event "Titled Tuesday Blitz June 13 Late 2023"]
[White "Najer, Evgeniy"]
[Black "Roebers, Eline"]
[WhiteFideId "4118987"]
[BlackFideId "1058401"]
[WhiteElo "2545"]
[BlackElo "2528"]
[Result "1-0"]
[Round "2"]
[TimeControl "180+2"]
[Date "2023.06.13"]
[WhiteClock "0:00:41"]
[BlackClock "0:00:07"]
[Board "57"]

1. d4 {[%clk 0:03:00]}  f5 {[%clk 0:02:59]} 2. Bf4 {[%clk 0:02:59]}  Nf6 {[%clk 0:02:58]} 3. e3 {[%clk 0:03:00]}  d6 {[%clk 0:02:58]} 4. Nc3 {[%clk 0:02:58]}  g6 {[%clk 0:02:51]} 5. h4 {[%clk 0:02:57]}  h6 {[%clk 0:02:51]} 6. Qf3 {[%clk 0:02:57]}  e6 {[%clk 0:02:37]} 7. O-O-O {[%clk 0:02:54]}  Nc6 {[%clk 0:02:24]} 8. e4 {[%clk 0:02:50]}  fxe4 {[%clk 0:02:22]} 9. Nxe4 {[%clk 0:02:50]}  Bg7 {[%clk 0:02:22]} 10. Qg3 {[%clk 0:02:40]}  Kf7 {[%clk 0:02:21]} 11. Bd3 {[%clk 0:02:36]}  Nxe4 {[%clk 0:02:00]} 12. Bxe4 {[%clk 0:02:36]}  Qf6 {[%clk 0:02:01]} 13. Nf3 {[%clk 0:02:31]}  Bd7 {[%clk 0:01:52]} 14. h5 {[%clk 0:01:55]}  gxh5 {[%clk 0:01:37]} 15. Rxh5 {[%clk 0:01:52]}  Rag8 {[%clk 0:01:35]} 16. Qh2 {[%clk 0:01:43]}  Bf8 {[%clk 0:01:26]} 17. Kb1 {[%clk 0:01:38]}  Rg4 {[%clk 0:01:20]} 18. g3 {[%clk 0:01:32]}  Bg7 {[%clk 0:01:11]} 19. c3 {[%clk 0:01:23]}  Kf8 {[%clk 0:00:53]} 20. Qh3 {[%clk 0:01:19]}  Rxf4 {[%clk 0:00:43]} 21. gxf4 {[%clk 0:01:19]}  Qxf4 {[%clk 0:00:44]} 22. Rh4 {[%clk 0:01:14]}  Qf6 {[%clk 0:00:42]} 23. Qg3 {[%clk 0:01:12]}  Ke7 {[%clk 0:00:34]} 24. Rg4 {[%clk 0:01:09]}  Bf8 {[%clk 0:00:34]} 25. Rg6 {[%clk 0:01:07]}  Qf7 {[%clk 0:00:33]} 26. Qh4+ {[%clk 0:01:04]}  Ke8 {[%clk 0:00:31]} 27. Rf6 {[%clk 0:01:01]}  Qe7 {[%clk 0:00:28]} 28. Qh5+ {[%clk 0:00:57]}  Kd8 {[%clk 0:00:26]} 29. Rf7 {[%clk 0:00:49]}  Qe8 {[%clk 0:00:16]} 30. Bg6 {[%clk 0:00:44]}  Kc8 {[%clk 0:00:07]} 31. Rh7 {[%clk 0:00:41]} 1-0


[Site "https://www.chess.com"]

[Event "Titled Tuesday Blitz June 13 Late 2023"]
[White "Bryakin, Mikhail"]
[Black "Urbina Perez, Juan Antonio"]
[WhiteFideId "4165314"]
[BlackFideId "2217368"]
[WhiteElo "2464"]
[BlackElo "2197"]
[Result "1/2-1/2"]
[Round "2"]
[TimeControl "180+2"]
[Date "2023.06.13"]
[WhiteClock "0:00:32"]
[BlackClock "0:00:17"]
[Board "59"]

1. e4 {[%clk 0:03:00]}  e6 {[%clk 0:02:57]} 2. d4 {[%clk 0:02:43]}  d5 {[%clk 0:02:56]} 3. Nc3 {[%clk 0:02:44]}  Nf6 {[%clk 0:02:52]} 4. Bg5 {[%clk 0:02:43]}  Bb4 {[%clk 0:02:51]} 5. e5 {[%clk 0:02:38]}  h6 {[%clk 0:02:51]} 6. Bd2 {[%clk 0:02:34]}  Bxc3 {[%clk 0:02:51]} 7. bxc3 {[%clk 0:02:29]}  Ne4 {[%clk 0:02:51]} 8. Nf3 {[%clk 0:02:29]}  c5 {[%clk 0:02:50]} 9. Bd3 {[%clk 0:02:27]}  Nxd2 {[%clk 0:02:49]} 10. Qxd2 {[%clk 0:02:27]}  c4 {[%clk 0:02:50]} 11. Be2 {[%clk 0:02:28]}  b5 {[%clk 0:02:41]} 12. a3 {[%clk 0:02:27]}  Nc6 {[%clk 0:02:40]} 13. h4 {[%clk 0:02:27]}  a5 {[%clk 0:02:39]} 14. h5 {[%clk 0:02:24]}  Bd7 {[%clk 0:02:35]} 15. O-O {[%clk 0:02:23]}  O-O {[%clk 0:02:33]} 16. g3 {[%clk 0:02:12]}  Qe7 {[%clk 0:02:33]} 17. Kg2 {[%clk 0:02:12]}  b4 {[%clk 0:02:32]} 18. axb4 {[%clk 0:02:10]}  axb4 {[%clk 0:02:33]} 19. Nh2 {[%clk 0:02:04]}  bxc3 {[%clk 0:02:32]} 20. Qxc3 {[%clk 0:02:04]}  Qb4 {[%clk 0:02:28]} 21. Qe3 {[%clk 0:02:05]}  c3 {[%clk 0:02:24]} 22. Rxa8 {[%clk 0:02:02]}  Rxa8 {[%clk 0:02:24]} 23. Nf3 {[%clk 0:02:02]}  Bc8 {[%clk 0:02:20]} 24. g4 {[%clk 0:01:57]}  Ba6 {[%clk 0:02:14]} 25. Ra1 {[%clk 0:01:57]}  Bb7 {[%clk 0:02:13]} 26. Rxa8+ {[%clk 0:01:57]}  Bxa8 {[%clk 0:02:14]} 27. g5 {[%clk 0:01:55]}  hxg5 {[%clk 0:02:02]} 28. Qxg5 {[%clk 0:01:55]}  Qe7 {[%clk 0:02:02]} 29. Qe3 {[%clk 0:01:54]}  Qb4 {[%clk 0:01:58]} 30. Bd3 {[%clk 0:01:54]}  Bb7 {[%clk 0:01:56]} 31. h6 {[%clk 0:01:53]}  g6 {[%clk 0:01:47]} 32. Qf4 {[%clk 0:01:48]}  Qe7 {[%clk 0:01:46]} 33. Nh2 {[%clk 0:01:29]}  Nb4 {[%clk 0:01:41]} 34. Ng4 {[%clk 0:01:14]}  Nxd3 {[%clk 0:01:26]} 35. cxd3 {[%clk 0:01:15]}  c2 {[%clk 0:01:26]} 36. Nf6+ {[%clk 0:01:08]}  Kh8 {[%clk 0:01:25]} 37. Qc1 {[%clk 0:01:07]}  Qc7 {[%clk 0:01:24]} 38. h7 {[%clk 0:01:04]}  Ba6 {[%clk 0:01:14]} 39. Ne8 {[%clk 0:00:38]}  Qd8 {[%clk 0:01:07]} 40. Nd6 {[%clk 0:00:38]}  Qe7 {[%clk 0:00:54]} 41. Qxc2 {[%clk 0:00:28]}  Kxh7 {[%clk 0:00:54]} 42. Qd2 {[%clk 0:00:19]}  Kg7 {[%clk 0:00:50]} 43. Qe3 {[%clk 0:00:17]}  Qd8 {[%clk 0:00:31]} 44. Qh6+ {[%clk 0:00:16]}  Kg8 {[%clk 0:00:25]} 45. Qf4 {[%clk 0:00:16]}  Qe7 {[%clk 0:00:21]} 46. Qg3 {[%clk 0:00:16]}  Kg7 {[%clk 0:00:21]} 47. Kf1 {[%clk 0:00:16]}  Qc7 {[%clk 0:00:18]} 48. Qf3 {[%clk 0:00:14]}  Qc1+ {[%clk 0:00:18]} 49. Kg2 {[%clk 0:00:15]}  Qg5+ {[%clk 0:00:17]} 50. Kh3 {[%clk 0:00:15]}  Qh6+ {[%clk 0:00:16]} 51. Kg2 {[%clk 0:00:15]}  Qg5+ {[%clk 0:00:16]} 52. Kh3 {[%clk 0:00:10]}  Qh6+ {[%clk 0:00:15]} 53. Kg4 {[%clk 0:00:11]}  Qh5+ {[%clk 0:00:15]} 54. Kg3 {[%clk 0:00:11]}  Qg5+ {[%clk 0:00:14]} 55. Qg4 {[%clk 0:00:11]}  Qxg4+ {[%clk 0:00:14]} 56. Kxg4 {[%clk 0:00:12]}  Bxd3 {[%clk 0:00:15]} 57. Kg5 {[%clk 0:00:13]}  Bc2 {[%clk 0:00:13]} 58. Ne8+ {[%clk 0:00:13]}  Kf8 {[%clk 0:00:12]} 59. Nc7 {[%clk 0:00:14]}  Kg7 {[%clk 0:00:12]} 60. Nb5 {[%clk 0:00:14]}  Bd3 {[%clk 0:00:11]} 61. Nc3 {[%clk 0:00:15]}  Bc2 {[%clk 0:00:11]} 62. Ne2 {[%clk 0:00:15]}  Bd3 {[%clk 0:00:11]} 63. Nf4 {[%clk 0:00:16]}  Be4 {[%clk 0:00:11]} 64. Ne2 {[%clk 0:00:16]}  Bd3 {[%clk 0:00:11]} 65. Ng3 {[%clk 0:00:17]}  Bc2 {[%clk 0:00:11]} 66. f3 {[%clk 0:00:17]}  Bd3 {[%clk 0:00:11]} 67. Nh1 {[%clk 0:00:17]}  Be2 {[%clk 0:00:10]} 68. f4 {[%clk 0:00:17]}  Bf3 {[%clk 0:00:10]} 69. Nf2 {[%clk 0:00:18]}  Be4 {[%clk 0:00:10]} 70. Nd1 {[%clk 0:00:17]}  Bc2 {[%clk 0:00:10]} 71. Ne3 {[%clk 0:00:18]}  Bd3 {[%clk 0:00:10]} 72. Nd1 {[%clk 0:00:19]}  Bc2 {[%clk 0:00:10]} 73. Nc3 {[%clk 0:00:20]}  Bd3 {[%clk 0:00:11]} 74. Na4 {[%clk 0:00:20]}  Bb5 {[%clk 0:00:10]} 75. Nc5 {[%clk 0:00:21]}  Bc6 {[%clk 0:00:10]} 76. Na6 {[%clk 0:00:22]}  Bb5 {[%clk 0:00:10]} 77. Nc7 {[%clk 0:00:22]}  Bd7 {[%clk 0:00:11]} 78. Na8 {[%clk 0:00:22]}  Bc6 {[%clk 0:00:10]} 79. Nb6 {[%clk 0:00:23]}  Be8 {[%clk 0:00:10]} 80. Kh4 {[%clk 0:00:23]}  Bb5 {[%clk 0:00:11]} 81. Nc8 {[%clk 0:00:23]}  Bd7 {[%clk 0:00:11]} 82. Nd6 {[%clk 0:00:24]}  Ba4 {[%clk 0:00:10]} 83. Nb7 {[%clk 0:00:24]}  Bc2 {[%clk 0:00:11]} 84. Nc5 {[%clk 0:00:25]}  Be4 {[%clk 0:00:11]} 85. Kg4 {[%clk 0:00:22]}  Bf5+ {[%clk 0:00:10]} 86. Kg5 {[%clk 0:00:22]}  Bb1 {[%clk 0:00:11]} 87. Nb7 {[%clk 0:00:22]}  Bc2 {[%clk 0:00:11]} 88. Nd6 {[%clk 0:00:22]}  Bb1 {[%clk 0:00:11]} 89. Ne8+ {[%clk 0:00:22]}  Kf8 {[%clk 0:00:10]} 90. Nf6 {[%clk 0:00:23]}  Kg7 {[%clk 0:00:10]} 91. Ng4 {[%clk 0:00:23]}  Bf5 {[%clk 0:00:10]} 92. Ne3 {[%clk 0:00:23]}  Be4 {[%clk 0:00:10]} 93. Kg4 {[%clk 0:00:23]}  Bd3 {[%clk 0:00:10]} 94. Kg3 {[%clk 0:00:24]}  Be4 {[%clk 0:00:11]} 95. Kf2 {[%clk 0:00:24]}  Bd3 {[%clk 0:00:11]} 96. Ng4 {[%clk 0:00:24]}  Bf5 {[%clk 0:00:11]} 97. Nf6 {[%clk 0:00:25]}  Bc2 {[%clk 0:00:11]} 98. Ke3 {[%clk 0:00:25]}  Bb1 {[%clk 0:00:12]} 99. Kd2 {[%clk 0:00:25]}  Be4 {[%clk 0:00:11]} 100. Ne8+ {[%clk 0:00:26]}  Kf8 {[%clk 0:00:10]} 101. Nd6 {[%clk 0:00:26]}  Bf5 {[%clk 0:00:10]} 102. Kc3 {[%clk 0:00:27]}  Kg7 {[%clk 0:00:10]} 103. Kb4 {[%clk 0:00:27]}  g5 {[%clk 0:00:10]} 104. fxg5 {[%clk 0:00:27]}  Kg6 {[%clk 0:00:10]} 105. Kc5 {[%clk 0:00:26]}  Kxg5 {[%clk 0:00:11]} 106. Nxf7+ {[%clk 0:00:26]}  Kf4 {[%clk 0:00:11]} 107. Nd8 {[%clk 0:00:27]}  Ke4 {[%clk 0:00:11]} 108. Kd6 {[%clk 0:00:27]}  Kxd4 {[%clk 0:00:11]} 109. Nxe6+ {[%clk 0:00:28]}  Bxe6 {[%clk 0:00:10]} 110. Kxe6 {[%clk 0:00:28]}  Kc4 {[%clk 0:00:10]} 111. Kf6 {[%clk 0:00:28]}  d4 {[%clk 0:00:11]} 112. e6 {[%clk 0:00:29]}  d3 {[%clk 0:00:12]} 113. e7 {[%clk 0:00:30]}  d2 {[%clk 0:00:13]} 114. e8=Q {[%clk 0:00:30]}  d1=Q {[%clk 0:00:14]} 115. Qc6+ {[%clk 0:00:31]}  Kb3 {[%clk 0:00:14]} 116. Qb5+ {[%clk 0:00:32]}  Kc2 {[%clk 0:00:14]} 117. Qc4+ {[%clk 0:00:32]}  Kb1 {[%clk 0:00:14]} 118. Qb4+ {[%clk 0:00:32]}  Kc1 {[%clk 0:00:15]} 119. Qc3+ {[%clk 0:00:32]}  Qc2 {[%clk 0:00:15]} 120. Qa1+ {[%clk 0:00:32]}  Qb1 {[%clk 0:00:15]} 121. Qc3+ {[%clk 0:00:33]}  Qc2 {[%clk 0:00:15]} 122. Qe1+ {[%clk 0:00:34]}  Qd1 {[%clk 0:00:16]} 123. Qe3+ {[%clk 0:00:34]}  Qd2 {[%clk 0:00:16]} 124. Qe6 {[%clk 0:00:35]}  Qc2 {[%clk 0:00:16]} 125. Qd5 {[%clk 0:00:34]}  Kb1 {[%clk 0:00:17]} 126. Qh1+ {[%clk 0:00:33]}  Qc1 {[%clk 0:00:17]} 127. Qh7+ {[%clk 0:00:32]}  Qc2 {[%clk 0:00:17]} 128. Qxc2+ {[%clk 0:00:32]}  Kxc2 {[%clk 0:00:17]} 1/2-1/2


[Site "https://www.chess.com"]

[Event "Titled Tuesday Blitz June 13 Late 2023"]
[White "Santos Ruiz, Miguel"]
[Black "Toniutti, Ezio"]
[WhiteFideId "22291482"]
[BlackFideId "113034"]
[WhiteElo "2499"]
[BlackElo "2215"]
[Result "1-0"]
[Round "2"]
[TimeControl "180+2"]
[Date "2023.06.13"]
[WhiteClock "0:00:11"]
[BlackClock "0:00:10"]
[Board "60"]

1. e4 {[%clk 0:03:00]}  e5 {[%clk 0:02:59]} 2. Nf3 {[%clk 0:03:00]}  Nc6 {[%clk 0:03:00]} 3. Bc4 {[%clk 0:03:00]}  Nf6 {[%clk 0:02:59]} 4. d3 {[%clk 0:03:00]}  Be7 {[%clk 0:02:54]} 5. a4 {[%clk 0:02:59]}  O-O {[%clk 0:02:48]} 6. Nc3 {[%clk 0:02:52]}  d6 {[%clk 0:02:47]} 7. h3 {[%clk 0:02:52]}  Be6 {[%clk 0:02:45]} 8. g4 {[%clk 0:02:47]}  d5 {[%clk 0:02:38]} 9. exd5 {[%clk 0:02:47]}  Nxd5 {[%clk 0:02:37]} 10. Ne4 {[%clk 0:02:45]}  a6 {[%clk 0:02:11]} 11. Qe2 {[%clk 0:02:32]}  Re8 {[%clk 0:01:49]} 12. Bd2 {[%clk 0:02:13]}  f6 {[%clk 0:01:16]} 13. c3 {[%clk 0:01:46]}  Bf8 {[%clk 0:01:14]} 14. Nh4 {[%clk 0:01:31]}  Nb6 {[%clk 0:01:00]} 15. Bxe6+ {[%clk 0:01:30]}  Rxe6 {[%clk 0:01:00]} 16. a5 {[%clk 0:01:14]}  Nd5 {[%clk 0:00:54]} 17. Nf5 {[%clk 0:01:08]}  Qd7 {[%clk 0:00:52]} 18. Rg1 {[%clk 0:01:06]}  g6 {[%clk 0:00:37]} 19. Qf3 {[%clk 0:00:53]}  Nf4 {[%clk 0:00:34]} 20. Bxf4 {[%clk 0:00:36]}  exf4 {[%clk 0:00:34]} 21. O-O-O {[%clk 0:00:35]}  Rae8 {[%clk 0:00:33]} 22. Qxf4 {[%clk 0:00:33]}  Bg7 {[%clk 0:00:30]} 23. Nxg7 {[%clk 0:00:32]}  Kxg7 {[%clk 0:00:30]} 24. g5 {[%clk 0:00:30]}  f5 {[%clk 0:00:27]} 25. Nf6 {[%clk 0:00:31]}  Qe7 {[%clk 0:00:20]} 26. Nxe8+ {[%clk 0:00:25]}  Qxe8 {[%clk 0:00:20]} 27. Kb1 {[%clk 0:00:17]}  Ne5 {[%clk 0:00:19]} 28. Qd4 {[%clk 0:00:17]}  Kg8 {[%clk 0:00:18]} 29. Rge1 {[%clk 0:00:17]}  Nf7 {[%clk 0:00:15]} 30. Rxe6 {[%clk 0:00:17]}  Qxe6 {[%clk 0:00:16]} 31. f4 {[%clk 0:00:16]}  Qe2 {[%clk 0:00:16]} 32. Rc1 {[%clk 0:00:15]}  Qg2 {[%clk 0:00:15]} 33. Re1 {[%clk 0:00:12]}  Kf8 {[%clk 0:00:12]} 34. Qb4+ {[%clk 0:00:11]}  Nd6 {[%clk 0:00:12]} 35. Qd4 {[%clk 0:00:11]}  Kf7 {[%clk 0:00:10]} 36. Qf6+ {[%clk 0:00:11]} 1-0


[Site "https://www.chess.com"]